[Event "Titled Tuesday Blitz May 24 Late 2022"]
[White "Vajda, Levente"]
[Black "Remolar Gallen, Jose"]
[WhiteFideId "1203975"]
[BlackFideId "2215187"]
[WhiteElo "2573"]
[BlackElo "2205"]
[Result "1-0"]
[Round "01"]
[TimeControl "180+1"]
[Date "2022.05.25"]
[WhiteClock "0:00:31"]
[BlackClock "0:00:04"]

1. e4 {[%clk 0:03:00]}  c5 {[%clk 0:02:59]} 2. c3 {[%clk 0:02:59]}  g6 {[%clk 0:02:59]} 3. d4 {[%clk 0:02:59]}  cxd4 {[%clk 0:03:00]} 4. cxd4 {[%clk 0:03:00]}  d5 {[%clk 0:03:00]} 5. exd5 {[%clk 0:03:00]}  Nf6 {[%clk 0:03:01]} 6. Nc3 {[%clk 0:03:00]}  Bg7 {[%clk 0:03:01]} 7. Qb3 {[%clk 0:03:00]}  O-O {[%clk 0:03:01]} 8. Be2 {[%clk 0:02:54]}  Nbd7 {[%clk 0:02:33]} 9. Bf3 {[%clk 0:02:54]}  Nb6 {[%clk 0:02:32]} 10. Nge2 {[%clk 0:02:54]}  Bf5 {[%clk 0:02:20]} 11. O-O {[%clk 0:02:54]}  Bd3 {[%clk 0:02:17]} 12. d6 {[%clk 0:02:54]}  exd6 {[%clk 0:02:06]} 13. Rd1 {[%clk 0:02:38]}  Bc4 {[%clk 0:02:04]} 14. Qc2 {[%clk 0:02:37]}  Nfd5 {[%clk 0:01:52]} 15. Nf4 {[%clk 0:02:36]}  Nxc3 {[%clk 0:01:39]} 16. bxc3 {[%clk 0:02:35]}  d5 {[%clk 0:01:37]} 17. a4 {[%clk 0:02:31]}  a5 {[%clk 0:01:20]} 18. Rb1 {[%clk 0:02:27]}  Rc8 {[%clk 0:01:13]} 19. Ba3 {[%clk 0:02:20]}  Re8 {[%clk 0:01:12]} 20. Bg4 {[%clk 0:02:20]}  Rc6 {[%clk 0:01:04]} 21. Bf3 {[%clk 0:02:16]}  Qg5 {[%clk 0:00:49]} 22. Bc1 {[%clk 0:02:01]}  Qe7 {[%clk 0:00:44]} 23. Be3 {[%clk 0:01:57]}  Qd7 {[%clk 0:00:36]} 24. h4 {[%clk 0:01:50]}  Rf6 {[%clk 0:00:32]} 25. Nd3 {[%clk 0:01:36]}  Bxd3 {[%clk 0:00:30]} 26. Qxd3 {[%clk 0:01:32]}  Qxa4 {[%clk 0:00:25]} 27. Ra1 {[%clk 0:01:08]}  Qc4 {[%clk 0:00:25]} 28. Rxa5 {[%clk 0:01:06]}  Qxd3 {[%clk 0:00:18]} 29. Rxd3 {[%clk 0:01:07]}  Rc6 {[%clk 0:00:16]} 30. Bxd5 {[%clk 0:01:03]}  Nxd5 {[%clk 0:00:15]} 31. Rxd5 {[%clk 0:01:04]}  Rec8 {[%clk 0:00:15]} 32. Bd2 {[%clk 0:00:56]}  Bf6 {[%clk 0:00:11]} 33. Rb5 {[%clk 0:00:55]}  b6 {[%clk 0:00:05]} 34. g3 {[%clk 0:00:55]}  Bd8 {[%clk 0:00:05]} 35. Kg2 {[%clk 0:00:53]}  Kf8 {[%clk 0:00:05]} 36. h5 {[%clk 0:00:51]}  Ke8 {[%clk 0:00:06]} 37. g4 {[%clk 0:00:48]}  Kd7 {[%clk 0:00:06]} 38. Rf3 {[%clk 0:00:47]}  f6 {[%clk 0:00:05]} 39. hxg6 {[%clk 0:00:45]}  hxg6 {[%clk 0:00:05]} 40. Rh3 {[%clk 0:00:46]}  Be7 {[%clk 0:00:05]} 41. Rh7 {[%clk 0:00:45]}  Rg8 {[%clk 0:00:05]} 42. d5 {[%clk 0:00:32]}  Rd6 {[%clk 0:00:04]} 43. Bf4 {[%clk 0:00:31]} 1-0


[Site "https://www.chess.com"]

[Event "Titled Tuesday Blitz May 24 Late 2022"]
[White "Vega Gutierrez, Sabrina"]
[Black "Ohanyan, Emin"]
[WhiteFideId "2219026"]
[BlackFideId "13312022"]
[WhiteElo "2286"]
[BlackElo "1927"]
[Result "1-0"]
[Round "01"]
[TimeControl "180+1"]
[Date "2022.05.25"]
[WhiteClock "0:00:48"]
[BlackClock "0:00:01"]

1. e4 {[%clk 0:03:00]}  e5 {[%clk 0:02:09]} 2. Nf3 {[%clk 0:03:00]}  Nc6 {[%clk 0:02:10]} 3. Nc3 {[%clk 0:03:00]}  Nf6 {[%clk 0:02:10]} 4. g3 {[%clk 0:03:00]}  Bb4 {[%clk 0:02:07]} 5. Bg2 {[%clk 0:03:00]}  O-O {[%clk 0:02:04]} 6. O-O {[%clk 0:03:00]}  d6 {[%clk 0:02:04]} 7. d3 {[%clk 0:02:57]}  Bg4 {[%clk 0:02:03]} 8. h3 {[%clk 0:02:57]}  Bd7 {[%clk 0:02:03]} 9. Nd5 {[%clk 0:02:53]}  Nxd5 {[%clk 0:02:01]} 10. exd5 {[%clk 0:02:54]}  Ne7 {[%clk 0:02:00]} 11. c3 {[%clk 0:02:49]}  Bc5 {[%clk 0:01:53]} 12. Ng5 {[%clk 0:02:33]}  h6 {[%clk 0:01:50]} 13. Ne4 {[%clk 0:02:32]}  Bb6 {[%clk 0:01:51]} 14. a4 {[%clk 0:02:01]}  a5 {[%clk 0:01:33]} 15. Nd2 {[%clk 0:01:59]}  Qc8 {[%clk 0:01:06]} 16. Kh2 {[%clk 0:01:56]}  f5 {[%clk 0:01:06]} 17. Nc4 {[%clk 0:01:55]}  Bc5 {[%clk 0:01:06]} 18. Be3 {[%clk 0:01:53]}  Bxe3 {[%clk 0:01:04]} 19. fxe3 {[%clk 0:01:51]}  b6 {[%clk 0:01:05]} 20. b4 {[%clk 0:01:39]}  Qe8 {[%clk 0:00:42]} 21. b5 {[%clk 0:01:36]}  g5 {[%clk 0:00:31]} 22. Bf3 {[%clk 0:01:22]}  Qg6 {[%clk 0:00:28]} 23. e4 {[%clk 0:01:21]}  f4 {[%clk 0:00:28]} 24. Bh5 {[%clk 0:01:20]}  Qg7 {[%clk 0:00:25]} 25. Bg4 {[%clk 0:01:20]}  Ng6 {[%clk 0:00:20]} 26. Bxd7 {[%clk 0:01:17]}  Qxd7 {[%clk 0:00:21]} 27. Qg4 {[%clk 0:01:18]}  Qxg4 {[%clk 0:00:18]} 28. hxg4 {[%clk 0:01:18]}  Rf6 {[%clk 0:00:17]} 29. gxf4 {[%clk 0:01:10]}  exf4 {[%clk 0:00:08]} 30. d4 {[%clk 0:01:06]}  Re8 {[%clk 0:00:08]} 31. Rae1 {[%clk 0:01:05]}  Rf7 {[%clk 0:00:03]} 32. e5 {[%clk 0:01:04]}  Rfe7 {[%clk 0:00:03]} 33. exd6 {[%clk 0:00:50]}  Rxe1 {[%clk 0:00:02]} 34. Rxe1 {[%clk 0:00:50]}  Rd8 {[%clk 0:00:01]} 35. dxc7 {[%clk 0:00:48]}  Rc8 {[%clk 0:00:01]} 36. d6 {[%clk 0:00:49]}  Nf8 {[%clk 0:00:01]} 37. Nxb6 {[%clk 0:00:49]}  Ra8 {[%clk 0:00:01]} 38. Nxa8 {[%clk 0:00:48]} 1-0


[Site "https://www.chess.com"]

[Event "Titled Tuesday Blitz May 24 Late 2022"]
[White "Winkels, Marcel"]
[Black "Griffith, Kyron"]
[WhiteFideId "1003887"]
[BlackFideId "2046318"]
[WhiteElo "1900"]
[BlackElo "2232"]
[Result "0-1"]
[Round "01"]
[TimeControl "180+1"]
[Date "2022.05.25"]
[WhiteClock "0:00:02"]
[BlackClock "0:00:09"]

1. e4 {[%clk 0:02:59]}  c5 {[%clk 0:02:59]} 2. Nc3 {[%clk 0:02:55]}  d6 {[%clk 0:02:56]} 3. f4 {[%clk 0:02:53]}  g6 {[%clk 0:02:54]} 4. Nf3 {[%clk 0:02:53]}  Bg7 {[%clk 0:02:55]} 5. Bc4 {[%clk 0:02:53]}  Nc6 {[%clk 0:02:53]} 6. O-O {[%clk 0:02:45]}  e6 {[%clk 0:02:54]} 7. f5 {[%clk 0:02:44]}  Nge7 {[%clk 0:02:51]} 8. fxe6 {[%clk 0:02:31]}  Bxe6 {[%clk 0:02:29]} 9. Bxe6 {[%clk 0:02:29]}  fxe6 {[%clk 0:02:30]} 10. Ng5 {[%clk 0:02:29]}  Qd7 {[%clk 0:02:17]} 11. d3 {[%clk 0:02:17]}  Bd4+ {[%clk 0:01:59]} 12. Kh1 {[%clk 0:02:15]}  Ne5 {[%clk 0:01:59]} 13. Bf4 {[%clk 0:02:11]}  h6 {[%clk 0:01:55]} 14. Bxe5 {[%clk 0:02:06]}  Bxe5 {[%clk 0:01:45]} 15. Nf7 {[%clk 0:02:05]}  Bxc3 {[%clk 0:01:44]} 16. bxc3 {[%clk 0:02:02]}  Rh7 {[%clk 0:01:45]} 17. Qf3 {[%clk 0:01:55]}  Nc6 {[%clk 0:01:11]} 18. Nxh6 {[%clk 0:01:32]}  O-O-O {[%clk 0:01:10]} 19. Ng4 {[%clk 0:01:31]}  Rdh8 {[%clk 0:01:04]} 20. h3 {[%clk 0:01:27]}  Rh4 {[%clk 0:00:59]} 21. Kg1 {[%clk 0:01:23]}  Qg7 {[%clk 0:00:54]} 22. Qf7 {[%clk 0:01:12]}  Qxc3 {[%clk 0:00:35]} 23. Qxe6+ {[%clk 0:01:10]}  Kb8 {[%clk 0:00:35]} 24. Qxd6+ {[%clk 0:01:08]}  Ka8 {[%clk 0:00:35]} 25. Rab1 {[%clk 0:00:58]}  Rb8 {[%clk 0:00:32]} 26. Rf7 {[%clk 0:00:46]}  Nb4 {[%clk 0:00:19]} 27. Rf8 {[%clk 0:00:35]}  Na6 {[%clk 0:00:18]} 28. Rxb8+ {[%clk 0:00:32]}  Nxb8 {[%clk 0:00:19]} 29. Qe7 {[%clk 0:00:23]}  Qd4+ {[%clk 0:00:15]} 30. Kh2 {[%clk 0:00:17]}  Rxh3+ {[%clk 0:00:13]} 31. Kxh3 {[%clk 0:00:13]}  b6 {[%clk 0:00:12]} 32. Ne5 {[%clk 0:00:10]}  Qe3+ {[%clk 0:00:11]} 33. Nf3 {[%clk 0:00:09]}  Qh6+ {[%clk 0:00:11]} 34. Kg3 {[%clk 0:00:08]}  g5 {[%clk 0:00:12]} 35. Qe5 {[%clk 0:00:06]}  Nc6 {[%clk 0:00:11]} 36. Qd5 {[%clk 0:00:06]}  Kb7 {[%clk 0:00:10]} 37. Rf1 {[%clk 0:00:02]}  Kc7 {[%clk 0:00:09]} 0-1


[Site "https://www.chess.com"]

[Event "Titled Tuesday Blitz May 24 Late 2022"]
[White "Yaksin, Oleg"]
[Black "Mangialardo, Tiago Carvalho"]
[WhiteFideId "24105880"]
[BlackFideId "2130718"]
[WhiteElo "2256"]
[BlackElo "2155"]
[Result "1-0"]
[Round "01"]
[TimeControl "180+1"]
[Date "2022.05.25"]
[WhiteClock "0:00:19"]
[BlackClock "0:00:01"]

1. d4 {[%clk 0:03:00]}  d5 {[%clk 0:02:59]} 2. c4 {[%clk 0:03:00]}  c6 {[%clk 0:02:59]} 3. Nf3 {[%clk 0:03:00]}  Nf6 {[%clk 0:02:59]} 4. Qb3 {[%clk 0:03:00]}  e6 {[%clk 0:02:56]} 5. Bg5 {[%clk 0:02:58]}  Be7 {[%clk 0:02:56]} 6. e3 {[%clk 0:02:58]}  O-O {[%clk 0:02:56]} 7. Nc3 {[%clk 0:02:59]}  Nbd7 {[%clk 0:02:51]} 8. Bd3 {[%clk 0:02:59]}  Re8 {[%clk 0:02:51]} 9. O-O {[%clk 0:02:58]}  dxc4 {[%clk 0:02:48]} 10. Qxc4 {[%clk 0:02:58]}  Nb6 {[%clk 0:02:48]} 11. Qb3 {[%clk 0:02:58]}  Nfd5 {[%clk 0:02:46]} 12. Bxe7 {[%clk 0:02:56]}  Qxe7 {[%clk 0:02:41]} 13. Rad1 {[%clk 0:02:56]}  Nd7 {[%clk 0:02:21]} 14. Rfe1 {[%clk 0:02:43]}  Nxc3 {[%clk 0:02:17]} 15. bxc3 {[%clk 0:02:43]}  e5 {[%clk 0:02:17]} 16. e4 {[%clk 0:02:40]}  Kh8 {[%clk 0:01:58]} 17. h3 {[%clk 0:02:32]}  a5 {[%clk 0:01:56]} 18. dxe5 {[%clk 0:02:07]}  Nxe5 {[%clk 0:01:56]} 19. Nxe5 {[%clk 0:02:07]}  Qxe5 {[%clk 0:01:57]} 20. Qxf7 {[%clk 0:02:07]}  Be6 {[%clk 0:01:57]} 21. Qxb7 {[%clk 0:02:05]}  Qxc3 {[%clk 0:01:55]} 22. Bb1 {[%clk 0:01:57]}  Rab8 {[%clk 0:01:43]} 23. Qc7 {[%clk 0:01:56]}  Rb2 {[%clk 0:01:22]} 24. Qf4 {[%clk 0:01:31]}  Bxa2 {[%clk 0:01:05]} 25. Rc1 {[%clk 0:01:27]}  Qb3 {[%clk 0:00:53]} 26. Bxa2 {[%clk 0:01:25]}  Qxa2 {[%clk 0:00:51]} 27. Rxc6 {[%clk 0:01:21]}  a4 {[%clk 0:00:50]} 28. e5 {[%clk 0:01:13]}  Qd5 {[%clk 0:00:36]} 29. Ra6 {[%clk 0:00:42]}  a3 {[%clk 0:00:13]} 30. Rxa3 {[%clk 0:00:38]}  Qc5 {[%clk 0:00:13]} 31. Rf3 {[%clk 0:00:32]}  Qa5 {[%clk 0:00:13]} 32. Rfe3 {[%clk 0:00:28]}  h6 {[%clk 0:00:07]} 33. e6 {[%clk 0:00:27]}  Rb4 {[%clk 0:00:07]} 34. Qf7 {[%clk 0:00:24]}  Qd8 {[%clk 0:00:03]} 35. e7 {[%clk 0:00:24]}  Qb8 {[%clk 0:00:02]} 36. Rg3 {[%clk 0:00:21]}  Rg8 {[%clk 0:00:01]} 37. Rxg7 {[%clk 0:00:19]}  Rxg7 {[%clk 0:00:01]} 38. e8=Q+ {[%clk 0:00:19]} 1-0


[Site "https://www.chess.com"]

[Event "Titled Tuesday Blitz May 24 Late 2022"]
[White "Yedidia, Daniel"]
[Black "Roque Sola, Jose Luis"]
[WhiteFideId "30905907"]
[BlackFideId "5120390"]
[WhiteElo "2575"]
[BlackElo "1983"]
[Result "1-0"]
[Round "01"]
[TimeControl "180+1"]
[Date "2022.05.25"]
[WhiteClock "0:00:07"]
[BlackClock "0:00:31"]

1. d4 {[%clk 0:03:00]}  Nf6 {[%clk 0:02:58]} 2. c4 {[%clk 0:03:00]}  e6 {[%clk 0:02:59]} 3. Nc3 {[%clk 0:03:00]}  Bb4 {[%clk 0:02:58]} 4. e3 {[%clk 0:03:00]}  Bxc3+ {[%clk 0:02:57]} 5. bxc3 {[%clk 0:03:01]}  O-O {[%clk 0:02:55]} 6. Bd3 {[%clk 0:02:58]}  c5 {[%clk 0:02:54]} 7. Ne2 {[%clk 0:02:57]}  d6 {[%clk 0:02:51]} 8. O-O {[%clk 0:02:57]}  Nc6 {[%clk 0:02:42]} 9. Ng3 {[%clk 0:02:49]}  b6 {[%clk 0:02:39]} 10. f4 {[%clk 0:02:40]}  Ba6 {[%clk 0:02:36]} 11. Qe2 {[%clk 0:02:33]}  Na5 {[%clk 0:02:34]} 12. e4 {[%clk 0:02:30]}  cxd4 {[%clk 0:02:03]} 13. cxd4 {[%clk 0:02:23]}  Rc8 {[%clk 0:02:03]} 14. e5 {[%clk 0:02:09]}  dxe5 {[%clk 0:02:03]} 15. dxe5 {[%clk 0:02:08]}  Ng4 {[%clk 0:01:50]} 16. Ba3 {[%clk 0:01:53]}  Re8 {[%clk 0:01:45]} 17. Bxh7+ {[%clk 0:01:37]}  Kxh7 {[%clk 0:01:43]} 18. Qxg4 {[%clk 0:01:37]}  Bxc4 {[%clk 0:01:19]} 19. Rfd1 {[%clk 0:01:23]}  Bd5 {[%clk 0:01:14]} 20. Nh5 {[%clk 0:01:02]}  g6 {[%clk 0:01:14]} 21. Nf6+ {[%clk 0:01:00]}  Kg7 {[%clk 0:01:14]} 22. Nxe8+ {[%clk 0:00:43]}  Qxe8 {[%clk 0:01:15]} 23. Qg5 {[%clk 0:00:40]}  Rc2 {[%clk 0:01:10]} 24. Qf6+ {[%clk 0:00:32]}  Kg8 {[%clk 0:01:01]} 25. Rxd5 {[%clk 0:00:31]}  exd5 {[%clk 0:00:59]} 26. Re1 {[%clk 0:00:28]}  Nc4 {[%clk 0:00:50]} 27. Be7 {[%clk 0:00:20]}  d4 {[%clk 0:00:37]} 28. e6 {[%clk 0:00:19]}  Ne3 {[%clk 0:00:37]} 29. Qxd4 {[%clk 0:00:11]}  Rxg2+ {[%clk 0:00:32]} 30. Kh1 {[%clk 0:00:10]}  Qc6 {[%clk 0:00:32]} 31. exf7+ {[%clk 0:00:11]}  Kxf7 {[%clk 0:00:31]} 32. Qxe3 {[%clk 0:00:06]}  Rg3+ {[%clk 0:00:31]} 33. Qe4 {[%clk 0:00:07]} 1-0


[Site "https://www.chess.com"]

[Event "Titled Tuesday Blitz May 24 Late 2022"]
[White "Yuan, Qingyu"]
[Black "Urbina Perez, Juan Antonio"]
[WhiteFideId "8609772"]
[BlackFideId "2217368"]
[WhiteElo "2359"]
[BlackElo "2192"]
[Result "1-0"]
[Round "01"]
[TimeControl "180+1"]
[Date "2022.05.24"]
[WhiteClock "0:02:04"]
[BlackClock "0:02:05"]

1. e4 {[%clk 0:03:00]}  c5 {[%clk 0:02:58]} 2. Nf3 {[%clk 0:03:01]}  d6 {[%clk 0:02:59]} 3. Bb5+ {[%clk 0:03:01]}  Bd7 {[%clk 0:02:58]} 4. c4 {[%clk 0:03:01]}  Nf6 {[%clk 0:02:56]} 5. Nc3 {[%clk 0:03:01]}  Nc6 {[%clk 0:02:56]} 6. O-O {[%clk 0:02:57]}  g6 {[%clk 0:02:55]} 7. Bxc6 {[%clk 0:02:56]}  Bxc6 {[%clk 0:02:55]} 8. d4 {[%clk 0:02:57]}  cxd4 {[%clk 0:02:55]} 9. Nxd4 {[%clk 0:02:58]}  Bg7 {[%clk 0:02:54]} 10. Qe2 {[%clk 0:02:28]}  O-O {[%clk 0:02:45]} 11. Rd1 {[%clk 0:02:25]}  Nd7 {[%clk 0:02:33]} 12. b3 {[%clk 0:02:19]}  Qb6 {[%clk 0:02:23]} 13. Be3 {[%clk 0:02:14]}  Qa5 {[%clk 0:02:21]} 14. Rac1 {[%clk 0:02:14]}  Rac8 {[%clk 0:02:19]} 15. h3 {[%clk 0:02:12]}  a6 {[%clk 0:02:18]} 16. Nxc6 {[%clk 0:02:06]}  bxc6 {[%clk 0:02:15]} 17. Na4 {[%clk 0:02:06]}  c5 {[%clk 0:02:06]} 18. f4 {[%clk 0:02:05]}  Nb6 {[%clk 0:02:05]} 19. Bd2 {[%clk 0:02:04]} 1-0


[Site "https://www.chess.com"]

[Event "Titled Tuesday Blitz May 24 Late 2022"]
[White "Zherebtsova, Alexandra"]
[Black "Matinian, Nikita"]
[WhiteFideId "24129518"]
[BlackFideId "24129100"]
[WhiteElo "2025"]
[BlackElo "2422"]
[Result "0-1"]
[Round "01"]
[TimeControl "180+1"]
[Date "2022.05.25"]
[WhiteClock "0:00:09"]
[BlackClock "0:01:14"]

1. d4 {[%clk 0:02:57]}  Nf6 {[%clk 0:02:59]} 2. c4 {[%clk 0:02:53]}  g6 {[%clk 0:03:00]} 3. Nc3 {[%clk 0:02:52]}  Bg7 {[%clk 0:03:00]} 4. e4 {[%clk 0:02:52]}  O-O {[%clk 0:03:00]} 5. Be2 {[%clk 0:02:48]}  d6 {[%clk 0:03:00]} 6. Be3 {[%clk 0:02:46]}  Na6 {[%clk 0:02:58]} 7. h3 {[%clk 0:02:35]}  e5 {[%clk 0:02:57]} 8. d5 {[%clk 0:02:34]}  Nc5 {[%clk 0:02:57]} 9. Qc2 {[%clk 0:02:31]}  c6 {[%clk 0:02:38]} 10. dxc6 {[%clk 0:02:19]}  bxc6 {[%clk 0:02:38]} 11. Rd1 {[%clk 0:02:16]}  Qe7 {[%clk 0:02:29]} 12. Nf3 {[%clk 0:02:13]}  Nh5 {[%clk 0:02:27]} 13. Qd2 {[%clk 0:02:03]}  Nf4 {[%clk 0:02:12]} 14. Bf1 {[%clk 0:01:32]}  f5 {[%clk 0:02:04]} 15. Qxd6 {[%clk 0:01:22]}  Qxd6 {[%clk 0:02:05]} 16. Rxd6 {[%clk 0:01:21]}  Nxe4 {[%clk 0:02:05]} 17. Nxe4 {[%clk 0:01:10]}  fxe4 {[%clk 0:02:06]} 18. Nd2 {[%clk 0:01:10]}  Nd3+ {[%clk 0:01:38]} 19. Bxd3 {[%clk 0:01:03]}  exd3 {[%clk 0:01:39]} 20. Rxc6 {[%clk 0:00:45]}  Bb7 {[%clk 0:01:37]} 21. Rc7 {[%clk 0:00:45]}  Bxg2 {[%clk 0:01:37]} 22. Rh2 {[%clk 0:00:38]}  Bf3 {[%clk 0:01:27]} 23. Bc5 {[%clk 0:00:19]}  Rf4 {[%clk 0:01:20]} 24. Be3 {[%clk 0:00:17]}  Rf5 {[%clk 0:01:19]} 25. Rxa7 {[%clk 0:00:15]}  Rb8 {[%clk 0:01:17]} 26. b3 {[%clk 0:00:15]}  e4 {[%clk 0:01:18]} 27. a4 {[%clk 0:00:13]}  Bc3 {[%clk 0:01:16]} 28. h4 {[%clk 0:00:12]}  Rxb3 {[%clk 0:01:15]} 29. Kf1 {[%clk 0:00:10]}  Bxd2 {[%clk 0:01:14]} 30. Bxd2 {[%clk 0:00:09]}  Rb1+ {[%clk 0:01:14]} 0-1


[Site "https://www.chess.com"]

[Event "Titled Tuesday Blitz May 24 Late 2022"]
[White "Abdrlauf, Elham"]
[Black "Griffith, Kyron"]
[WhiteFideId "1533533"]
[BlackFideId "2046318"]
[WhiteElo "2371"]
[BlackElo "2232"]
[Result "0-1"]
[Round "02"]
[TimeControl "180+1"]
[Date "2022.05.24"]
[WhiteClock "0:00:25"]
[BlackClock "0:00:21"]

1. e4 {[%clk 0:02:59]}  d5 {[%clk 0:03:00]} 2. exd5 {[%clk 0:03:00]}  Qxd5 {[%clk 0:03:00]} 3. Nc3 {[%clk 0:03:00]}  Qd6 {[%clk 0:03:00]} 4. d4 {[%clk 0:03:01]}  Nf6 {[%clk 0:03:00]} 5. Nf3 {[%clk 0:03:01]}  a6 {[%clk 0:03:00]} 6. Bc4 {[%clk 0:02:59]}  b5 {[%clk 0:02:56]} 7. Bb3 {[%clk 0:02:58]}  e6 {[%clk 0:02:52]} 8. O-O {[%clk 0:02:58]}  Bb7 {[%clk 0:02:53]} 9. Re1 {[%clk 0:02:57]}  Be7 {[%clk 0:02:53]} 10. Bg5 {[%clk 0:02:48]}  Nbd7 {[%clk 0:02:49]} 11. Qe2 {[%clk 0:02:39]}  O-O {[%clk 0:02:43]} 12. Rad1 {[%clk 0:02:39]}  Rfe8 {[%clk 0:02:35]} 13. a3 {[%clk 0:02:29]}  h6 {[%clk 0:02:35]} 14. Bh4 {[%clk 0:02:29]}  Rad8 {[%clk 0:02:33]} 15. Bg3 {[%clk 0:02:17]}  Qb6 {[%clk 0:02:32]} 16. Ne5 {[%clk 0:02:00]}  Nxe5 {[%clk 0:02:26]} 17. dxe5 {[%clk 0:02:01]}  Qc6 {[%clk 0:02:20]} 18. f3 {[%clk 0:01:32]}  Nd5 {[%clk 0:02:20]} 19. Nxd5 {[%clk 0:01:27]}  exd5 {[%clk 0:02:20]} 20. c3 {[%clk 0:01:26]}  Qe6 {[%clk 0:02:04]} 21. Bc2 {[%clk 0:01:24]}  c5 {[%clk 0:02:01]} 22. f4 {[%clk 0:01:08]}  d4 {[%clk 0:01:59]} 23. cxd4 {[%clk 0:01:06]}  cxd4 {[%clk 0:01:59]} 24. f5 {[%clk 0:00:59]}  Qd5 {[%clk 0:01:57]} 25. Be4 {[%clk 0:00:57]}  Qxe4 {[%clk 0:01:50]} 26. Qxe4 {[%clk 0:00:58]}  Bxe4 {[%clk 0:01:50]} 27. Rxe4 {[%clk 0:00:59]}  d3 {[%clk 0:01:47]} 28. Bf4 {[%clk 0:00:58]}  Bc5+ {[%clk 0:01:35]} 29. Kf1 {[%clk 0:00:58]}  Rd5 {[%clk 0:01:31]} 30. g4 {[%clk 0:00:57]}  Bd6 {[%clk 0:01:24]} 31. Kf2 {[%clk 0:00:51]}  Bxe5 {[%clk 0:01:16]} 32. Bxe5 {[%clk 0:00:48]}  Rexe5 {[%clk 0:01:16]} 33. Rxe5 {[%clk 0:00:49]}  Rxe5 {[%clk 0:01:17]} 34. Rxd3 {[%clk 0:00:49]}  Rc5 {[%clk 0:01:16]} 35. Ke3 {[%clk 0:00:47]}  Rc2 {[%clk 0:01:06]} 36. h3 {[%clk 0:00:47]}  Rxb2 {[%clk 0:01:05]} 37. Kf4 {[%clk 0:00:42]}  a5 {[%clk 0:00:55]} 38. Rd8+ {[%clk 0:00:38]}  Kh7 {[%clk 0:00:55]} 39. Rd7 {[%clk 0:00:39]}  f6 {[%clk 0:00:53]} 40. Ra7 {[%clk 0:00:30]}  a4 {[%clk 0:00:46]} 41. Rb7 {[%clk 0:00:29]}  b4 {[%clk 0:00:41]} 42. axb4 {[%clk 0:00:30]}  a3 {[%clk 0:00:40]} 43. Kg3 {[%clk 0:00:26]}  a2 {[%clk 0:00:32]} 44. Ra7 {[%clk 0:00:27]}  Rxb4 {[%clk 0:00:27]} 45. Rxa2 {[%clk 0:00:26]}  Rb3+ {[%clk 0:00:28]} 46. Kh4 {[%clk 0:00:25]}  Rb4 {[%clk 0:00:28]} 47. Kh5 {[%clk 0:00:24]}  Rb3 {[%clk 0:00:28]} 48. h4 {[%clk 0:00:24]}  Rb1 {[%clk 0:00:27]} 49. Ra7 {[%clk 0:00:24]}  Rg1 {[%clk 0:00:27]} 50. Rb7 {[%clk 0:00:24]}  Rg2 {[%clk 0:00:27]} 51. Rb6 {[%clk 0:00:24]}  Rg1 {[%clk 0:00:27]} 52. Rc6 {[%clk 0:00:25]}  Rg2 {[%clk 0:00:28]} 53. Rc5 {[%clk 0:00:25]}  Rg1 {[%clk 0:00:28]} 54. Rc2 {[%clk 0:00:26]}  Rg3 {[%clk 0:00:28]} 55. Rc1 {[%clk 0:00:27]}  Rg2 {[%clk 0:00:28]} 56. Ra1 {[%clk 0:00:27]}  Rg3 {[%clk 0:00:28]} 57. Ra2 {[%clk 0:00:28]}  Rg1 {[%clk 0:00:28]} 58. Ra3 {[%clk 0:00:28]}  Rg2 {[%clk 0:00:28]} 59. Rf3 {[%clk 0:00:29]}  Rg1 {[%clk 0:00:27]} 60. Rf2 {[%clk 0:00:30]}  Rg3 {[%clk 0:00:27]} 61. Rc2 {[%clk 0:00:30]}  Rg1 {[%clk 0:00:27]} 62. Rc4 {[%clk 0:00:31]}  Rg2 {[%clk 0:00:27]} 63. Rc7 {[%clk 0:00:32]}  Rg1 {[%clk 0:00:26]} 64. Rb7 {[%clk 0:00:32]}  Rg2 {[%clk 0:00:26]} 65. Ra7 {[%clk 0:00:29]}  Rg1 {[%clk 0:00:26]} 66. Ra6 {[%clk 0:00:29]}  Rg2 {[%clk 0:00:27]} 67. Ra1 {[%clk 0:00:29]}  Rg3 {[%clk 0:00:26]} 68. Rh1 {[%clk 0:00:29]}  Rg2 {[%clk 0:00:23]} 69. Rd1 {[%clk 0:00:27]}  Rc2 {[%clk 0:00:22]} 70. Rg1 {[%clk 0:00:27]}  Rc5 {[%clk 0:00:22]} 71. Rf1 {[%clk 0:00:25]}  g6# {[%clk 0:00:21]} 0-1


[Site "https://www.chess.com"]

[Event "Titled Tuesday Blitz May 24 Late 2022"]
[White "Andreikin, Dmitry"]
[Black "Korchmar, Vasiliy"]
[WhiteFideId "4158814"]
[BlackFideId "24131750"]
[WhiteElo "2736"]
[BlackElo "2370"]
[Result "1-0"]
[Round "02"]
[TimeControl "180+1"]
[Date "2022.05.24"]
[WhiteClock "0:01:58"]
[BlackClock "0:00:18"]

1. d4 {[%clk 0:03:00]}  d5 {[%clk 0:02:58]} 2. c4 {[%clk 0:03:00]}  c6 {[%clk 0:02:58]} 3. Nf3 {[%clk 0:02:59]}  Nf6 {[%clk 0:02:58]} 4. Qc2 {[%clk 0:03:00]}  Bg4 {[%clk 0:02:39]} 5. Ne5 {[%clk 0:02:59]}  Bh5 {[%clk 0:02:38]} 6. cxd5 {[%clk 0:02:51]}  cxd5 {[%clk 0:02:35]} 7. Nc3 {[%clk 0:02:50]}  Nbd7 {[%clk 0:02:20]} 8. Bg5 {[%clk 0:02:35]}  e6 {[%clk 0:02:14]} 9. e4 {[%clk 0:02:29]}  a6 {[%clk 0:01:51]} 10. g4 {[%clk 0:02:12]}  Bg6 {[%clk 0:01:50]} 11. Nxg6 {[%clk 0:02:12]}  hxg6 {[%clk 0:01:51]} 12. e5 {[%clk 0:02:11]}  Rc8 {[%clk 0:00:59]} 13. exf6 {[%clk 0:02:11]}  gxf6 {[%clk 0:01:00]} 14. Be3 {[%clk 0:02:10]}  Bb4 {[%clk 0:00:58]} 15. Qb3 {[%clk 0:02:08]}  Qa5 {[%clk 0:00:55]} 16. Rc1 {[%clk 0:02:06]}  e5 {[%clk 0:00:45]} 17. Bg2 {[%clk 0:01:58]}  Rc4 {[%clk 0:00:21]} 18. O-O {[%clk 0:01:58]}  exd4 {[%clk 0:00:18]} 19. Nxd5 {[%clk 0:01:58]} 1-0


[Site "https://www.chess.com"]